[Event "7th Cesme Open-A 2019"]
[Site "Cesme"]
[Date "2019.06.29"]
[Round "8"]
[White "Annageldyev, Orazly"]
[Black "Rzayev, Askar Aliakbar"]
[Result "1-0"]
[ECO "C54"]
[WhiteElo "2353"]
[BlackElo "2089"]
[Annotator "NA"]
[PlyCount "83"]
[EventDate "2019.06.24"]
[EventType "swiss"]
[EventCountry "TUR"]
[SourceTitle "playchess.com"]
[Source "ChessBase"]
[SourceQuality "1"]
[TimeControl "5400+30"]

1. e4 {[%emt 0:00:30]} e5 {[%emt 0:09:30]} 2. Nf3 {[%emt 0:00:30]} Nc6 {[%emt 0:00:00]} 3. Bc4 {[%emt 0:00:00]} Bc5 {[%emt 0:02:00]} 4. O-O {[%emt 0:00:00]} Nf6 {[%emt 0:00:30]} 5. d3 {[%emt 0:00:00]} d6 {[%emt 0:00:00]} 6. c3 {[%emt 0:01:00]} O-O {[%emt 0:00:00]} 7. Re1 {[%emt 0:02:30]} a5 {[%emt 0:00:30]} 8. Nbd2 {[%emt 0:01:30]} Be6 {[%emt 0:01:30]} 9. Bxe6 {[%emt 0:08:30]} fxe6 {[%emt 0:00:30]} 10. Nf1 {[%emt 0:00:30]} Bb6 {[%emt 0:04:30]} 11. Be3 {[%emt 0:02:30]} Bxe3 {[%emt 0:01:30]} 12. Nxe3 {[%emt 0:00:30]} a4 {[%emt 0:00:30]} 13. d4 {[%emt 0:10:30]} Nxe4 {[%emt 0:05:30]} 14. d5 {[%emt 0:10:30]} Ne7 {[%emt 0:00:30]} 15. dxe6 {[%emt 0:00:00]} Nxf2 {[%emt 0:06:30]} 16. Qc2 {[%emt 0:04:00]} e4 {[%emt 0:00:30]} 17. Ng5 {[%emt 0:01:30]} Nd3 {[%emt 0:02:30]} 18. Rf1 {[%emt 0:00:30]} Rxf1+ {[%emt 0:02:30]} 19. Rxf1 {[%emt 0:00:30]} d5 {[%emt 0:00:00]} 20. Qe2 {[%emt 0:00:30]} Qe8 {[%emt 0:06:00]} 21. Rf7 {[%emt 0:06:30]} h6 {[%emt 0:03:30]} 22. Nxd5 {[%emt 0:02:30]} Nxd5 {[%emt 0:08:30]} 23. Qxe4 {[%emt 0:00:30]} hxg5 {[%emt 0:01:30]} 24. Qg6 {[%emt 0:00:30]} Qf8 {[%emt 0:00:30]} 25. Rxf8+ {[%emt 0:01:30]} Rxf8 {[%emt 0:00:00]} 26. Qxd3 {[%emt 0:00:00]} Nf4 {[%emt 0:01:00]} 27. Qe4 {[%emt 0:02:00]} c6 {[%emt 0:02:30]} 28. c4 {[%emt 0:10:30]} Re8 {[%emt 0:03:30]} 29. e7 {[%emt 0:00:30]} Nh5 {[%emt 0:00:30]} 30. Qe6+ {[%emt 0:00:30]} Kh7 {[%emt 0:00:30]} 31. Qf7 {[%emt 0:03:30]} Nf6 {[%emt 0:00:00]} 32. g4 {[%emt 0:00:00]} Kh6 {[%emt 0:01:00]} 33. h3 {[%emt 0:01:00]} b5 {[%emt 0:00:30]} 34. c5 {[%emt 0:00:30]} Rc8 {[%emt 0:01:30]} 35. Kg2 {[%emt 0:00:30]} Rb8 {[%emt 0:00:30]} 36. Kf3 {[%emt 0:00:30]} Re8 {[%emt 0:00:00]} 37. a3 {[%emt 0:00:30]} Rb8 {[%emt 0:02:00]} 38. Ke3 {[%emt 0:00:30]} Kh7 {[%emt 0:02:30]} 39. Kd4 {[%emt 0:00:30]} b4 {[%emt 0:00:30]} 40. h4 {[%emt 0:04:30]} gxh4 {[%emt 0:01:30]} 41. g5 {[%emt 0:00:30]} Ne8 {[%emt 0:00:00]} 42. g6+ {[%emt 0:00:30]} 1-0

[Event "7th Cesme Open-A 2019"]
[Site "Cesme"]
[Date "2019.06.29"]
[Round "8"]
[White "Kamer, Kayra"]
[Black "Caputcuoglu, Zeki Berke"]
[Result "1-0"]
[ECO "E90"]
[WhiteElo "2353"]
[BlackElo "2097"]
[Annotator "NA"]
[PlyCount "117"]
[EventDate "2019.06.24"]
[EventType "swiss"]
[EventCountry "TUR"]
[SourceTitle "playchess.com"]
[Source "ChessBase"]
[SourceQuality "1"]
[TimeControl "5400+30"]

1. d4 {[%emt 0:08:30]} Nf6 {[%emt 0:00:30]} 2. c4 {[%emt 0:00:30]} g6 {[%emt 0:00:30]} 3. Nc3 {[%emt 0:00:00]} Bg7 {[%emt 0:00:30]} 4. e4 {[%emt 0:00:00]} d6 {[%emt 0:00:00]} 5. h3 {[%emt 0:00:30]} O-O {[%emt 0:00:00]} 6. Nf3 {[%emt 0:00:30]} c5 {[%emt 0:00:30]} 7. d5 {[%emt 0:00:30]} e6 {[%emt 0:00:30]} 8. Bd3 {[%emt 0:00:30]} Na6 {[%emt 0:00:30]} 9. Bg5 {[%emt 0:01:30]} h6 {[%emt 0:00:30]} 10. Be3 {[%emt 0:00:30]} Nc7 {[%emt 0:00:00]} 11. e5 {[%emt 0:01:30]} dxe5 {[%emt 0:07:00]} 12. Bxc5 {[%emt 0:00:30]} Re8 {[%emt 0:11:30]} 13. d6 {[%emt 0:00:30]} Na6 {[%emt 0:00:30]} 14. Ba3 {[%emt 0:00:30]} Nd7 {[%emt 0:01:30]} 15. Nb5 {[%emt 0:01:30]} f5 {[%emt 0:02:30]} 16. Bc2 {[%emt 0:00:00]} e4 {[%emt 0:06:30]} 17. Nfd4 {[%emt 0:00:00]} Ne5 {[%emt 0:00:30]} 18. b3 {[%emt 0:01:30]} Nc6 {[%emt 0:03:30]} 19. O-O {[%emt 0:02:30]} Nxd4 {[%emt 0:02:30]} 20. Nxd4 {[%emt 0:00:30]} Qb6 {[%emt 0:00:00]} 21. Nb5 {[%emt 0:03:30]} Bd7 {[%emt 0:03:00]} 22. Qe2 {[%emt 0:00:30]} Qa5 {[%emt 0:15:30]} 23. b4 {[%emt 0:00:30]} Nxb4 {[%emt 0:02:30]} 24. Bxb4 {[%emt 0:00:30]} Qxb4 {[%emt 0:00:00]} 25. Rab1 {[%emt 0:00:30]} Qc5 {[%emt 0:01:00]} 26. Nc7 {[%emt 0:00:00]} Qxd6 {[%emt 0:00:00]} 27. Nxe8 {[%emt 0:00:00]} Bxe8 {[%emt 0:03:00]} 28. Rxb7 {[%emt 0:00:30]} Bc6 {[%emt 0:00:30]} 29. Rbb1 {[%emt 0:00:00]} Qe5 {[%emt 0:05:30]} 30. Rbd1 {[%emt 0:00:00]} Bf8 {[%emt 0:04:30]} 31. Qd2 {[%emt 0:00:30]} f4 {[%emt 0:05:30]} 32. Rfe1 {[%emt 0:01:30]} e3 {[%emt 0:07:09]} 33. Qd3 {[%emt 0:01:30]} Qg5 {[%emt 0:09:15]} 34. Qxg6+ {[%emt 0:01:30]} Qxg6 {[%emt 0:00:56]} 35. Bxg6 {[%emt 0:00:00]} Bc5 {[%emt 0:00:36]} 36. fxe3 {[%emt 0:00:00]} Bxe3+ {[%emt 0:00:03]} 37. Kf1 {[%emt 0:00:30]} Kg7 {[%emt 0:03:00]} 38. Bh5 {[%emt 0:04:30]} Kf6 {[%emt 0:02:55]} 39. Bg4 {[%emt 0:00:30]} Ke7 {[%emt 0:01:38]} 40. Rd3 {[%emt 0:04:30]} e5 {[%emt 0:02:21]} 41. Rdxe3 {[%emt 0:01:30]} fxe3 {[%emt 0:00:30]} 42. Rxe3 {[%emt 0:00:00]} Rf8+ {[%emt 0:00:54]} 43. Kg1 {[%emt 0:01:00]} Kd6 {[%emt 0:01:17]} 44. c5+ {[%emt 0:00:30]} Kxc5 {[%emt 0:00:30]} 45. Rxe5+ {[%emt 0:00:30]} Kb4 {[%emt 0:00:00]} 46. Re6 {[%emt 0:00:30]} Bd5 {[%emt 0:00:36]} 47. Rxh6 {[%emt 0:00:00]} a5 {[%emt 0:00:06]} 48. Be6 {[%emt 0:00:00]} Bxe6 {[%emt 0:01:10]} 49. Rxe6 {[%emt 0:00:00]} a4 {[%emt 0:00:20]} 50. h4 {[%emt 0:01:00]} Rd8 {[%emt 0:00:45]} 51. Re2 {[%emt 0:00:30]} a3 {[%emt 0:00:30]} 52. g4 {[%emt 0:00:30]} Ka4 {[%emt 0:00:27]} 53. h5 {[%emt 0:00:00]} Rb8 {[%emt 0:00:50]} 54. h6 {[%emt 0:00:00]} Rb1+ {[%emt 0:00:23]} 55. Kh2 {[%emt 0:00:30]} Rb2 {[%emt 0:00:30]} 56. Rg2 {[%emt 0:00:00]} Rb7 {[%emt 0:00:00]} 57. g5 {[%emt 0:00:00]} Rh7 {[%emt 0:00:15]} 58. Kg1 {[%emt 0:00:00]} Rb7 {[%emt 0:00:00]} 59. g6 {[%emt 0:00:00]} 1-0

[Event "7th Cesme Open-A 2019"]
[Site "Cesme"]
[Date "2019.06.29"]
[Round "8"]
[White "Olcum, Ahmet"]
[Black "Kara, Yanki"]
[Result "1/2-1/2"]
[ECO "C00"]
[WhiteElo "2315"]
[BlackElo "2186"]
[Annotator "NA"]
[PlyCount "105"]
[EventDate "2019.06.24"]
[EventType "swiss"]
[EventCountry "TUR"]
[SourceTitle "playchess.com"]
[Source "ChessBase"]
[SourceQuality "1"]
[TimeControl "5400+30"]

1. e4 {[%emt 0:14:30]} e6 {[%emt 0:01:30]} 2. d3 {[%emt 0:00:30]} d5 {[%emt 0:00:30]} 3. Nd2 {[%emt 0:00:30]} Nf6 {[%emt 0:00:30]} 4. Ngf3 {[%emt 0:00:00]} Nc6 {[%emt 0:01:30]} 5. c3 {[%emt 0:02:00]} dxe4 {[%emt 0:01:30]} 6. dxe4 {[%emt 0:00:00]} e5 {[%emt 0:02:30]} 7. Qc2 {[%emt 0:02:00]} a5 {[%emt 0:04:30]} 8. h3 {[%emt 0:03:30]} Bc5 {[%emt 0:01:30]} 9. Be2 {[%emt 0:01:30]} Qe7 {[%emt 0:00:30]} 10. Nf1 {[%emt 0:05:30]} O-O {[%emt 0:02:30]} 11. g4 {[%emt 0:01:30]} Qe6 {[%emt 0:16:30]} 12. Be3 {[%emt 0:14:30]} Nd7 {[%emt 0:02:30]} 13. h4 {[%emt 0:10:30]} Ne7 {[%emt 0:10:30]} 14. h5 {[%emt 0:00:30]} b6 {[%emt 0:01:30]} 15. g5 {[%emt 0:10:30]} Bb7 {[%emt 0:04:30]} 16. N3d2 {[%emt 0:02:30]} Ba6 {[%emt 0:04:30]} 17. Bxa6 {[%emt 0:06:30]} Rxa6 {[%emt 0:00:00]} 18. Qd3 {[%emt 0:04:53]} Raa8 {[%emt 0:01:00]} 19. Qc4 {[%emt 0:05:55]} Qc6 {[%emt 0:01:30]} 20. a4 {[%emt 0:05:13]} Rad8 {[%emt 0:01:30]} 21. g6 {[%emt 0:01:48]} Bxe3 {[%emt 0:04:30]} 22. Nxe3 {[%emt 0:00:06]} Nc5 {[%emt 0:00:30]} 23. gxh7+ {[%emt 0:00:15]} Kxh7 {[%emt 0:00:00]} 24. Ke2 {[%emt 0:01:38]} f5 {[%emt 0:04:00]} 25. h6 {[%emt 0:02:40]} g6 {[%emt 0:01:30]} 26. Nf3 {[%emt 0:01:58]} Nxe4 {[%emt 0:00:30]} 27. Rad1 {[%emt 0:00:11]} Rxd1 {[%emt 0:11:33]} 28. Rxd1 {[%emt 0:00:06]} Kxh6 {[%emt 0:00:54]} 29. Nxe5 {[%emt 0:00:48]} Qxc4+ {[%emt 0:00:27]} 30. N3xc4 {[%emt 0:00:06]} Nc5 {[%emt 0:00:32]} 31. Nd7 {[%emt 0:01:12]} Nxd7 {[%emt 0:05:52]} 32. Rxd7 {[%emt 0:00:30]} Re8 {[%emt 0:00:30]} 33. Kf1 {[%emt 0:00:30]} f4 {[%emt 0:00:30]} 34. Rxc7 {[%emt 0:00:30]} Nf5 {[%emt 0:00:30]} 35. Nxb6 {[%emt 0:00:30]} f3 {[%emt 0:00:03]} 36. Nd5 {[%emt 0:01:59]} Re2 {[%emt 0:00:36]} 37. b4 {[%emt 0:00:33]} Ra2 {[%emt 0:00:59]} 38. Kg1 {[%emt 0:00:17]} Ra1+ {[%emt 0:01:43]} 39. Kh2 {[%emt 0:00:01]} Rf1 {[%emt 0:01:09]} 40. Ne3 {[%emt 0:00:10]} Nxe3 {[%emt 0:02:06]} 41. fxe3 {[%emt 0:00:30]} Rc1 {[%emt 0:00:00]} 42. Kg3 {[%emt 0:00:17]} axb4 {[%emt 0:00:03]} 43. Kxf3 {[%emt 0:01:04]} bxc3 {[%emt 0:00:06]} 44. Ke4 {[%emt 0:00:31]} c2 {[%emt 0:00:48]} 45. Rc6 {[%emt 0:00:57]} Kg7 {[%emt 0:01:18]} 46. a5 {[%emt 0:00:57]} Ra1 {[%emt 0:00:30]} 47. Rxc2 {[%emt 0:00:30]} Rxa5 {[%emt 0:00:00]} 48. Rf2 {[%emt 0:00:00]} g5 {[%emt 0:01:40]} 49. Rf5 {[%emt 0:00:30]} Rxf5 {[%emt 0:01:33]} 50. Kxf5 {[%emt 0:00:02]} g4 {[%emt 0:00:18]} 51. Kxg4 {[%emt 0:00:30]} Kg6 {[%emt 0:00:30]} 52. Kf4 {[%emt 0:00:30]} Kf6 {[%emt 0:00:00]} 53. Ke4 {[%emt 0:00:00]} 1/2-1/2

[Event "7th Cesme Open-A 2019"]
[Site "Cesme"]
[Date "2019.06.29"]
[Round "8"]
[White "Eminov, Orkhan"]
[Black "Bashirli, Nail"]
[Result "1/2-1/2"]
[ECO "C49"]
[WhiteElo "2314"]
[BlackElo "2367"]
[Annotator "NA"]
[PlyCount "106"]
[EventDate "2019.06.24"]
[EventType "swiss"]
[EventCountry "TUR"]
[SourceTitle "playchess.com"]
[Source "ChessBase"]
[SourceQuality "1"]
[TimeControl "5400+30"]

1. e4 {[%emt 0:09:30]} Nf6 {[%emt 0:01:30]} 2. Nc3 {[%emt 0:02:30]} e5 {[%emt 0:03:30]} 3. Nf3 {[%emt 0:04:30]} Nc6 {[%emt 0:01:30]} 4. Bb5 {[%emt 0:01:30]} Bb4 {[%emt 0:00:00]} 5. O-O {[%emt 0:00:30]} O-O {[%emt 0:00:00]} 6. d3 {[%emt 0:01:30]} Bxc3 {[%emt 0:00:00]} 7. bxc3 {[%emt 0:00:30]} d6 {[%emt 0:00:00]} 8. Bg5 {[%emt 0:04:30]} Qe7 {[%emt 0:00:30]} 9. Re1 {[%emt 0:00:00]} h6 {[%emt 0:02:30]} 10. Bc1 {[%emt 0:06:00]} Bg4 {[%emt 0:02:30]} 11. Ba3 {[%emt 0:12:30]} a6 {[%emt 0:01:30]} 12. Bxc6 {[%emt 0:03:30]} bxc6 {[%emt 0:00:30]} 13. d4 $11 {[%emt 0:04:30]} Qe6 {[%emt 0:14:30]} 14. Qd3 {[%emt 0:05:30]} Bxf3 {[%emt 0:00:30]} 15. Qxf3 {[%emt 0:00:30]} Nd7 {[%emt 0:12:30]} 16. Qg3 {[%emt 0:08:30]} f5 {[%emt 0:04:30]} 17. Qd3 {[%emt 0:05:30]} f4 {[%emt 0:03:30]} 18. f3 {[%emt 0:00:30]} Nb6 {[%emt 0:00:00]} 19. Reb1 {[%emt 0:03:30]} c5 {[%emt 0:11:00]} 20. Bc1 {[%emt 0:04:30]} Rf6 {[%emt 0:18:30]} 21. a4 {[%emt 0:02:21]} cxd4 {[%emt 0:03:12]} 22. cxd4 {[%emt 0:04:15]} exd4 {[%emt 0:00:02]} 23. Bb2 {[%emt 0:02:51]} Rg6 {[%emt 0:02:55]} 24. Bxd4 {[%emt 0:02:36]} Qh3 {[%emt 0:00:30]} 25. Qf1 {[%emt 0:00:15]} Nd7 {[%emt 0:02:48]} 26. Kh1 {[%emt 0:00:58]} Qe6 {[%emt 0:00:07]} 27. Rb7 {[%emt 0:01:13]} c5 {[%emt 0:03:31]} 28. Bc3 {[%emt 0:00:17]} Ne5 {[%emt 0:00:50]} 29. Bxe5 {[%emt 0:01:33]} Qxe5 {[%emt 0:01:10]} 30. Qc4+ {[%emt 0:00:17]} Kh7 {[%emt 0:01:01]} 31. Rab1 {[%emt 0:00:17]} Re8 {[%emt 0:00:53]} 32. Rd1 {[%emt 0:06:33]} Qg5 {[%emt 0:00:20]} 33. Qf1 {[%emt 0:00:07]} Qe5 {[%emt 0:02:03]} 34. Qc4 {[%emt 0:00:28]} Qg5 {[%emt 0:04:12]} 35. Qf1 {[%emt 0:00:07]} Re5 {[%emt 0:03:09]} 36. Rb6 {[%emt 0:00:19]} Qe7 {[%emt 0:00:31]} 37. Rxa6 {[%emt 0:01:30]} Rh5 {[%emt 0:00:28]} 38. a5 {[%emt 0:01:21]} c4 {[%emt 0:00:30]} 39. Qg1 {[%emt 0:00:57]} Rc5 {[%emt 0:00:59]} 40. Qf2 {[%emt 0:01:01]} Qc7 {[%emt 0:01:14]} 41. Qd2 {[%emt 0:00:36]} c3 {[%emt 0:00:31]} 42. Qxf4 {[%emt 0:00:34]} Rxa5 {[%emt 0:00:06]} 43. Rxa5 {[%emt 0:00:14]} Qxa5 {[%emt 0:00:05]} 44. Qf5 {[%emt 0:00:23]} Qa2 {[%emt 0:01:12]} 45. h4 {[%emt 0:00:37]} Qxc2 {[%emt 0:00:02]} 46. Rg1 {[%emt 0:00:00]} Qf2 {[%emt 0:01:28]} 47. g3 {[%emt 0:00:00]} c2 {[%emt 0:00:08]} 48. h5 {[%emt 0:00:06]} Qxg1+ {[%emt 0:00:47]} 49. Kxg1 {[%emt 0:00:30]} c1=Q+ {[%emt 0:00:30]} 50. Kh2 {[%emt 0:00:30]} Qg5 {[%emt 0:00:30]} 51. hxg6+ {[%emt 0:00:30]} Qxg6 {[%emt 0:00:00]} 52. Qd7 {[%emt 0:00:33]} Qf6 {[%emt 0:00:00]} 53. Kg2 {[%emt 0:00:56]} d5 {[%emt 0:00:07]} 1/2-1/2

[Event "7th Cesme Open-A 2019"]
[Site "Cesme"]
[Date "2019.06.29"]
[Round "8"]
[White "Sevgi, Volkan"]
[Black "Unat, Can Haktan"]
[Result "1-0"]
[ECO "C26"]
[WhiteElo "2302"]
[BlackElo "2079"]
[Annotator "ChessBase"]
[PlyCount "149"]
[EventDate "2019.06.24"]
[EventType "swiss"]
[EventCountry "TUR"]
[SourceTitle "playchess.com"]
[Source "ChessBase"]
[SourceQuality "1"]
[TimeControl "5400+30"]

1. e4 {[%emt 0:01:30]} e5 {[%emt 0:06:30]} 2. Nc3 {[%emt 0:05:30]} Nf6 {[%emt 0:00:30]} 3. g3 {[%emt 0:00:00]} Nc6 {[%emt 0:02:30]} 4. Bg2 {[%emt 0:01:00]} Bc5 {[%emt 0:00:30]} 5. d3 {[%emt 0:00:30]} d6 {[%emt 0:00:00]} 6. Nge2 {[%emt 0:00:30]} h6 {[%emt 0:00:00]} 7. Na4 {[%emt 0:04:30]} Be6 {[%emt 0:06:30]} 8. Nxc5 {[%emt 0:02:30]} dxc5 {[%emt 0:02:30]} 9. f4 {[%emt 0:00:30]} Qe7 {[%emt 0:04:30]} 10. fxe5 {[%emt 0:07:30]} Nxe5 {[%emt 0:02:30]} 11. Bf4 {[%emt 0:01:30]} Nc6 {[%emt 0:02:30]} 12. O-O {[%emt 0:05:30]} O-O-O {[%emt 0:02:30]} 13. Qe1 {[%emt 0:09:30]} Rhg8 {[%emt 0:09:30]} 14. Qc3 {[%emt 0:04:30]} c4 {[%emt 0:07:30]} 15. Be3 {[%emt 0:02:30]} Rge8 {[%emt 0:19:30]} 16. Nd4 {[%emt 0:06:30]} Nxd4 {[%emt 0:06:30]} 17. Bxd4 {[%emt 0:00:30]} Qd7 {[%emt 0:00:00]} 18. Bxf6 {[%emt 0:09:30]} gxf6 {[%emt 0:00:00]} 19. Qxf6 {[%emt 0:05:30]} cxd3 {[%emt 0:00:30]} 20. cxd3 {[%emt 0:00:00]} Qxd3 {[%emt 0:01:30]} 21. Qxh6 {[%emt 0:00:00]} Qb5 {[%emt 0:07:56]} 22. Rf2 {[%emt 0:01:30]} Rd4 {[%emt 0:02:14]} 23. a3 {[%emt 0:03:30]} Red8 {[%emt 0:00:45]} 24. Bf3 {[%emt 0:00:30]} Qb6 {[%emt 0:01:39]} 25. Kg2 {[%emt 0:01:30]} Rd3 {[%emt 0:02:46]} 26. Rc1 {[%emt 0:02:30]} Qd4 {[%emt 0:02:55]} 27. Qf4 {[%emt 0:01:30]} c6 {[%emt 0:00:02]} 28. Rcc2 {[%emt 0:01:30]} Qd7 {[%emt 0:01:34]} 29. h4 {[%emt 0:00:30]} Rd4 {[%emt 0:01:53]} 30. Qe5 {[%emt 0:08:06]} Rg8 {[%emt 0:03:43]} 31. Kh2 {[%emt 0:00:27]} Bb3 {[%emt 0:00:08]} 32. Rc3 {[%emt 0:01:03]} Be6 {[%emt 0:00:53]} 33. b4 {[%emt 0:01:38]} a6 {[%emt 0:00:49]} 34. Bg2 {[%emt 0:03:38]} Rd1 {[%emt 0:00:54]} 35. Qf4 {[%emt 0:01:23]} Rg4 {[%emt 0:00:49]} 36. Qe3 {[%emt 0:00:24]} Qd6 {[%emt 0:00:31]} 37. e5 {[%emt 0:00:58]} Qe7 {[%emt 0:00:06]} 38. Qh6 {[%emt 0:02:05]} Rg6 {[%emt 0:01:00]} 39. Qf4 {[%emt 0:00:01]} Kb8 {[%emt 0:00:17]} 40. Bf3 {[%emt 0:00:33]} Ra1 {[%emt 0:01:21]} 41. Rd3 {[%emt 0:00:24]} Qc7 {[%emt 0:00:06]} 42. Rfd2 {[%emt 0:02:12]} Qb6 {[%emt 0:00:10]} 43. Qe3 {[%emt 0:00:24]} Qxe3 {[%emt 0:00:44]} 44. Rxe3 {[%emt 0:00:30]} Rg8 {[%emt 0:00:00]} 45. Rf2 {[%emt 0:00:00]} Ka7 {[%emt 0:00:16]} 46. Rd2 {[%emt 0:01:45]} Kb6 {[%emt 0:00:11]} 47. Kg2 {[%emt 0:00:14]} Bc4 {[%emt 0:00:37]} 48. g4 {[%emt 0:00:43]} Be6 {[%emt 0:00:47]} 49. Rd4 {[%emt 0:00:00]} Ra2+ {[%emt 0:00:18]} 50. Kg3 {[%emt 0:00:30]} Ra1 {[%emt 0:00:00]} 51. g5 {[%emt 0:00:18]} Rg1+ {[%emt 0:00:28]} 52. Kf2 {[%emt 0:00:30]} Rc1 {[%emt 0:00:00]} 53. Red3 {[%emt 0:00:33]} Rc2+ {[%emt 0:00:17]} 54. Kg3 {[%emt 0:00:01]} Kc7 {[%emt 0:00:13]} 55. Rf4 {[%emt 0:00:27]} Rc1 {[%emt 0:00:30]} 56. Bh5 {[%emt 0:01:00]} Rg7 {[%emt 0:01:04]} 57. Re3 {[%emt 0:00:37]} Rh7 {[%emt 0:01:11]} 58. Bf3 {[%emt 0:00:15]} Rg7 {[%emt 0:00:04]} 59. Rf6 {[%emt 0:00:16]} c5 {[%emt 0:00:37]} 60. bxc5 {[%emt 0:00:30]} Rxc5 {[%emt 0:00:30]} 61. Kf4 {[%emt 0:00:30]} Rc4+ {[%emt 0:00:30]} 62. Be4 {[%emt 0:00:30]} Rc1 {[%emt 0:00:30]} 63. h5 {[%emt 0:00:30]} Rg1 {[%emt 0:00:30]} 64. g6 {[%emt 0:00:12]} Rg4+ {[%emt 0:00:00]} 65. Kf3 {[%emt 0:00:30]} Rh4 {[%emt 0:00:00]} 66. gxf7 {[%emt 0:01:03]} Bxf7 {[%emt 0:00:51]} 67. Bg6 {[%emt 0:01:48]} Bxg6 {[%emt 0:01:57]} 68. hxg6 {[%emt 0:00:07]} Kd8 {[%emt 0:01:06]} 69. e6 {[%emt 0:00:59]} Rh8 {[%emt 0:01:00]} 70. Kf4 {[%emt 0:01:40]} Ke8 {[%emt 0:00:59]} 71. Kg5 {[%emt 0:02:18]} Rc7 {[%emt 0:01:13]} 72. Rf7 {[%emt 0:00:01]} Rc1 {[%emt 0:00:28]} 73. Kf6 {[%emt 0:00:41]} Rg1 {[%emt 0:00:36]} 74. Kg7 {[%emt 0:00:20]} Rh2 {[%emt 0:00:09]} 75. e7 {[%emt 0:00:12]} 1-0

[Event "7th Cesme Open-A 2019"]
[Site "Cesme"]
[Date "2019.06.29"]
[Round "8"]
[White "Ozenir, Ekin Baris"]
[Black "Lavrov, Maxim"]
[Result "1/2-1/2"]
[ECO "B07"]
[WhiteElo "2250"]
[BlackElo "2401"]
[Annotator "NA"]
[PlyCount "126"]
[EventDate "2019.06.24"]
[EventType "swiss"]
[EventCountry "TUR"]
[SourceTitle "playchess.com"]
[Source "ChessBase"]
[SourceQuality "1"]
[TimeControl "5400+30"]

1. d4 {[%emt 0:00:30]} d6 {[%emt 0:00:30]} 2. e4 {[%emt 0:00:30]} Nf6 {[%emt 0:00:30]} 3. f3 {[%emt 0:00:30]} Nbd7 {[%emt 0:00:30]} 4. Be3 {[%emt 0:02:30]} e5 {[%emt 0:00:30]} 5. d5 {[%emt 0:04:30]} c6 {[%emt 0:01:30]} 6. c4 {[%emt 0:01:30] B07: Pirc Defence: Miscellaneous Systems} Be7 {[%emt 0:03:30]} 7. Nc3 {[%emt 0:02:30]} a6 {[%emt 0:01:30]} (7... O-O 8. Nge2 a5 9. Nc1 cxd5 10. cxd5 b6 11. Bb5 Nc5 12. Bc6 Rb8 13. Nb5 Ba6 14. O-O Ne8 15. Nd3 f5 16. b4 Nxd3 17. Qxd3 axb4 18. exf5 {1-0 (51) Lenic,L (2662)-Plat,V (2569) chess.com INT 2018}) 8. Bd3 {[%emt 0:05:30]} cxd5 {[%emt 0:03:30]} 9. cxd5 {[%emt 0:01:30]} b5 {[%emt 0:04:30]} 10. Nge2 {[%emt 0:01:30]} Nc5 $146 {[%emt 0:00:30]} ({Predecessor:} 10... Nb6 11. a4 b4 12. a5 bxc3 13. Bxb6 cxb2 14. Bxd8 bxa1=Q 15. Qxa1 Bxd8 {½-½ (42) Vucicevic,M (2309)-Radovanovic,M (1941) Belgrade 2013}) 11. Bc2 {[%emt 0:02:30]} b4 {[%emt 0:04:30]} 12. Na4 {[%emt 0:05:30]} O-O {[%emt 0:07:30]} 13. Nxc5 {[%emt 0:08:30]} dxc5 {[%emt 0:00:00]} 14. Bd3 {[%emt 0:00:00]} Ne8 {[%emt 0:09:00]} 15. O-O {[%emt 0:05:00]} Bd7 {[%emt 0:01:30]} 16. Qd2 {[%emt 0:07:30]} Nd6 {[%emt 0:05:30]} 17. Rfc1 {[%emt 0:03:30]} Nb5 {[%emt 0:01:30]} 18. Rxc5 {[%emt 0:11:30]} Bxc5 {[%emt 0:00:30]} 19. Bxc5 {[%emt 0:00:30]} Re8 {[%emt 0:00:30]} 20. Qxb4 {[%emt 0:00:30]} a5 {[%emt 0:03:30]} 21. Qd2 {[%emt 0:06:30]} Rc8 {[%emt 0:01:30]} 22. Qe3 $16 {[%emt 0:02:30]} a4 {[%emt 0:00:30]} 23. Bxb5 {[%emt 0:10:40]} Bxb5 {[%emt 0:00:30]} 24. Nc3 {[%emt 0:00:00]} Bd7 {[%emt 0:01:30]} 25. b4 {[%emt 0:00:35]} axb3 {[%emt 0:00:30]} 26. axb3 {[%emt 0:00:03]} Ra8 {[%emt 0:00:30]} 27. Rd1 {[%emt 0:02:03]} Ra6 {[%emt 0:02:30]} 28. d6 {[%emt 0:06:48]} Qa8 {[%emt 0:00:30]} 29. Qc1 {[%emt 0:02:00]} Rb8 {[%emt 0:01:30]} 30. Nd5 {[%emt 0:02:36]} Ra2 {[%emt 0:00:30]} 31. b4 {[%emt 0:01:01]} h6 {[%emt 0:05:30]} 32. Qc3 {[%emt 0:03:43]} Qa6 {[%emt 0:00:30]} 33. Re1 {[%emt 0:01:03]} f6 {[%emt 0:01:30]} 34. Qb3 {[%emt 0:00:49]} Kh8 {[%emt 0:03:30]} 35. Nc7 {[%emt 0:00:30]} Qa4 {[%emt 0:00:30]} 36. Qxa4 {[%emt 0:00:30]} Rxa4 {[%emt 0:00:30]} 37. Rd1 {[%emt 0:00:17]} Kg8 {[%emt 0:02:30]} 38. Rd2 {[%emt 0:00:43]} Kf7 {[%emt 0:00:30]} 39. Kf2 {[%emt 0:00:21]} g5 {[%emt 0:00:30]} 40. h3 {[%emt 0:01:00]} h5 {[%emt 0:00:00]} 41. Ke3 {[%emt 0:00:14]} Ra3+ {[%emt 0:01:00]} 42. Rd3 {[%emt 0:00:25]} Ra2 {[%emt 0:00:30]} 43. Rd2 {[%emt 0:00:09]} Ra3+ {[%emt 0:02:30]} 44. Rd3 {[%emt 0:00:30]} Ra1 {[%emt 0:00:30]} 45. Rb3 {[%emt 0:00:52]} Ra2 {[%emt 0:00:30]} 46. g4 {[%emt 0:00:36]} hxg4 {[%emt 0:00:30]} 47. hxg4 {[%emt 0:00:25]} Rh8 {[%emt 0:03:30]} 48. b5 {[%emt 0:00:33]} Rb8 {[%emt 0:09:24]} 49. b6 {[%emt 0:00:31]} Rb7 {[%emt 0:01:29]} 50. Kd3 {[%emt 0:00:31]} Ba4 {[%emt 0:01:31]} 51. Rc3 {[%emt 0:00:30]} Bd7 {[%emt 0:02:40]} 52. Kc4 {[%emt 0:00:31]} Ra4+ {[%emt 0:00:38]} 53. Kb3 {[%emt 0:00:20]} Ra1 {[%emt 0:00:52]} 54. Kb4 {[%emt 0:00:27]} Ra4+ {[%emt 0:00:53]} 55. Kb3 {[%emt 0:00:30]} Ra1 {[%emt 0:00:00]} 56. Kb4 {[%emt 0:00:38]} Ra4+ {[%emt 0:00:07]} 57. Kb3 {[%emt 0:00:30]} Ra1 {[%emt 0:00:00]} 58. Kb2 {[%emt 0:00:21]} Rd1 {[%emt 0:02:54]} 59. Ra3 {[%emt 0:00:37]} Rxd6 {[%emt 0:00:29]} 60. Bxd6 {[%emt 0:00:55]} Rxb6+ {[%emt 0:00:04]} 61. Kc2 {[%emt 0:00:03]} Rc6+ {[%emt 0:00:36]} 62. Kd2 {[%emt 0:00:51]} Rxd6+ {[%emt 0:00:07]} 63. Rd3 {[%emt 0:00:31]} Ba4 {[%emt 0:00:30]} 1/2-1/2